bitfinex/quotes_SOLUSD_20241121
["timestamp","ask_amount","ask_price","bid_price","bid_amount"]
[1732201223710,40.48955962,252.28,252.15,40.48955962]
[1732201224093,6.234,252.3,252.18,40.48955962]
[1732201224289,40.48955962,252.25,252.08,19.8349]
[1732201224505,40.48955962,252.16,252.04,40.48955962]
[1732201224709,40.48955962,252.14,252.01,13.8882]
[1732201224989,0.5,252.27,251.93,9.923]
[1732201225223,0.5,252.12,251.63,31.7309]
[1732201225399,15.851798,252.14,251.64,3.9739]
[1732201225715,40.48955962,251.85,251.74,40.48955962]
[1732201225922,0.5,252.01,251.64,13.9087]
[1732201225923,40.48955962,251.78,251.64,40.48955962]
[1732201226091,312.0,252.01,251.46,73.05024002]
[1732201226092,40.48955962,251.82,251.69,40.48955962]
[1732201226291,40.48955962,251.88,251.76,40.48955962]
[1732201226537,0.5,252.03,251.47,0.49905]
[1732201226719,20.0,252.01,251.5,0.49905]
[1732201226921,13.8877,252.02,251.64,0.49905]
[1732201227235,3.9679,252.02,251.63,19.8704]
[1732201227448,3.9662,252.13,251.64,0.59539667]
[1732201227616,40.48955962,252.05,251.92,40.48955962]
[1732201227816,40.48955962,252.05,251.63,19.8704]
[1732201227817,40.48955962,252.03,251.89,40.48955962]
[1732201228134,3.9662,252.13,251.63,19.8704]
[1732201228135,40.48955962,251.91,251.63,19.8704]
[1732201228447,0.5,251.96,251.54,19.8775]
[1732201228620,23.85,252.03,251.55,0.90865207]
[1732201228936,0.5,251.91,251.55,0.90865207]
[1732201229115,0.5,251.86,251.52,33.7944]
[1732201229312,40.48955962,251.7,251.58,40.48955962]
[1732201229539,20.0,251.92,251.62,40.48955962]
[1732201229540,40.48955962,251.74,251.62,40.48955962]
[1732201229712,40.48955962,251.69,251.52,33.7944]
[1732201229915,40.48955962,251.59,251.52,9.9395]
[1732201230215,20.0,251.78,251.45,3.9768]
[1732201230448,0.5,251.74,251.28,13.9286]
[1732201230624,20.0,251.74,251.28,13.9286]
[1732201230812,0.5,251.64,251.28,13.9286]
[1732201231314,0.5,251.64,251.04,0.49905]
[1732201231315,40.48955962,251.39,251.26,40.48955962]
[1732201231515,40.48955962,251.33,251.2,40.48955962]
[1732201231743,40.48955962,251.33,251.13,3.982]
[1732201231744,40.48955962,251.29,251.21,0.90988188]
[1732201231943,40.48955962,251.23,251.21,0.90988188]
[1732201232114,40.48955962,251.23,250.97,9.9611]
[1732201232115,20.0,251.22,250.97,9.9611]
[1732201232315,20.0,251.22,250.85,32.0952]
[1732201232316,48.9792025,251.22,251.02,0.91057058]
[1732201232515,20.0,251.18,251.02,0.91057058]
[1732201232752,20.0,251.18,250.79,12.4397]
[1732201232753,0.5,251.12,250.86,7.22915379]
[1732201232943,0.5,251.12,250.67,31.0468]
[1732201232944,0.5,251.09,251.01,0.00220828]
[1732201233146,0.5,251.09,250.63,12.4397]
[1732201233147,40.48955962,251.02,250.75,3.6908201]
[1732201233315,40.48955962,250.93,250.81,40.48955962]
[1732201233516,40.48955962,250.89,250.8,4.02001712]
[1732201233739,40.48955962,250.87,250.75,13.9579]
[1732201234038,40.48955962,250.87,250.48,19.01806128]
[1732201234039,43.85,250.96,250.55,13.9692]
[1732201234243,25.24718862,250.86,250.56,3.21914185]
[1732201234448,0.5,250.95,250.55,33.9252]
[1732201234449,5.61639178,250.95,250.55,33.9252]
[1732201234618,20.0,250.94,250.55,29.934]
[1732201234818,20.0,250.92,250.55,29.934]
[1732201235018,44.47465962,250.93,250.81,40.48955962]
[1732201235238,40.48955962,250.88,250.74,40.48955962]
[1732201235535,3.9851,250.93,250.7,40.48955962]
[1732201235536,40.48955962,250.82,250.7,40.48955962]
[1732201235839,20.0,250.92,250.55,9.978]
[1732201236051,13.948,250.93,250.55,9.978]
[1732201236249,20.0,250.92,250.55,9.978]
[1732201236541,3.9842,250.99,250.56,19.73107085]
[1732201236749,0.5,251.17,250.8,40.48955962]
[1732201236750,13.9391,251.09,250.8,40.48955962]
[1732201237040,40.48955962,250.94,250.8,40.48955962]
[1732201237240,3.9826,251.09,250.91,40.48955962]
[1732201237445,3.9826,251.09,250.64,0.49905]
[1732201237446,3.9826,251.09,250.66,0.5977315]
[1732201237624,9.9528,251.19,250.6,0.5]
[1732201237625,3.9812,251.18,250.75,0.49905]
[1732201237815,3.9799,251.26,250.76,12.7998]
[1732201238017,13.9297,251.26,250.76,12.7998]
[1732201238228,13.9297,251.26,250.76,13.7113147]
[1732201238413,13.9297,251.26,250.8,0.49905]
[1732201238618,19.8937,251.34,250.87,13.9514]
[1732201238822,3.9769,251.45,251.31,40.48955962]
[1732201238823,12.7998,251.39,251.31,40.48955962]
[1732201239037,12.7998,251.39,251.37,40.48955962]
[1732201239228,9.9331,251.69,251.37,40.48955962]
[1732201239543,15.8858,251.59,251.13,40.48955962]
[1732201239721,15.8858,251.59,251.14,4.10276593]
[1732201239916,23.85,251.58,251.15,0.91009925]
[1732201240144,0.5,251.53,251.14,3.1924307]
[1732201240441,23.85,251.58,251.27,40.48955962]
[1732201240442,40.48955962,251.4,251.27,40.48955962]
[1732201240648,40.48955962,251.52,251.39,40.48955962]
[1732201240947,40.48955962,251.56,251.41,40.48955962]
[1732201241118,40.48955962,251.56,251.43,40.48955962]
[1732201241324,3.9748,251.58,251.19,39.19108004]
[1732201241325,40.48955962,251.54,251.39,40.48955962]
[1732201241517,40.48955962,251.54,251.19,19.9049]
[1732201241518,40.48955962,251.48,251.34,40.48955962]
[1732201241820,44.46435962,251.58,251.44,40.48955962]
[1732201242024,40.48955962,251.62,251.22,0.49905]
[1732201242219,31.8813,251.93,251.33,44.4794]
[1732201242220,9.9312,251.74,251.33,44.4794]
[1732201242432,31.8813,251.93,251.33,44.4794]
[1732201242433,9.928,251.82,251.33,44.4794]
[1732201242836,9.928,251.82,251.34,33.8185]
[1732201243344,40.48955962,251.72,251.6,40.48955962]
[1732201243523,40.48955962,251.67,251.53,40.48955962]
[1732201243723,9.928,251.81,251.34,33.8185]
[1732201243724,40.48955962,251.7,251.58,40.48955962]
[1732201244023,40.48955962,251.75,251.61,40.48955962]
[1732201244225,3.9714,251.8,251.51,13.9158]
[1732201244443,3.9714,251.8,251.3,3.67223883]
[1732201244444,0.5,251.78,251.35,9.9462]
[1732201244753,43.6849,251.8,251.36,0.90933891]
[1732201245117,43.6849,251.8,251.36,3.18397881]
[1732201245321,9.928,251.8,251.76,40.48955962]
[1732201245524,40.48955962,251.88,251.73,40.48955962]
[1732201245736,3.9707,251.84,251.74,40.48955962]
[1732201245936,3.9702,251.88,251.74,40.48955962]
[1732201246142,3.9702,251.88,251.77,40.48955962]
[1732201246324,40.48955962,251.96,251.82,40.48955962]
[1732201246539,40.48955962,252.11,251.94,40.48955962]
[1732201246852,15.855199,252.09,252.0,40.48955962]
[1732201247044,3.9652,252.19,251.67,0.5]
[1732201247250,3.9652,252.19,251.73,0.49905]
[1732201247441,3.9652,252.19,251.71,0.49905]
[1732201247745,33.7046,252.19,251.73,13.9037]
[1732201247948,40.48955962,252.1,251.95,40.48955962]
[1732201248249,33.7046,252.19,251.79,40.48955962]
[1732201248250,40.48955962,252.16,252.01,40.48955962]
[1732201248746,9.9102,252.27,251.79,40.48955962]
[1732201248747,40.48955962,252.21,252.07,40.48955962]
[1732201248928,3.9648,252.22,252.1,40.48955962]
[1732201249129,40.48955962,252.27,252.1,40.48955962]
[1732201249130,3.9644,252.25,252.1,40.48955962]
[1732201249529,40.48955962,252.24,252.07,40.48955962]
[1732201249750,40.48955962,252.21,252.07,40.48955962]
[1732201249954,40.48955962,252.21,251.79,40.48955962]
[1732201249955,40.48955962,252.16,252.02,50.40905962]
[1732201250258,40.48955962,252.14,252.0,40.48955962]
[1732201250752,40.48955962,252.09,251.95,9.9226]
[1732201250929,40.48955962,252.09,251.96,40.48955962]
[1732201251130,40.48955962,252.07,251.94,40.48955962]
[1732201251336,40.48955962,252.07,251.89,3.9698]
[1732201251337,40.48955962,252.09,251.96,40.48955962]
[1732201251637,40.48955962,252.06,251.92,40.48955962]
[1732201251838,20.0,252.19,251.9,40.48955962]
[1732201251839,40.48955962,252.04,251.9,40.48955962]
[1732201252040,40.48955962,252.02,251.9,40.48955962]
[1732201252247,40.48955962,252.04,251.92,40.48955962]
[1732201252427,0.5,252.18,251.68,44.3281]
[1732201252629,0.5,252.18,251.8,9.9282]
[1732201252630,23.85,252.17,251.8,9.9282]
[1732201252854,0.5,252.15,251.8,9.9282]
[1732201253249,20.0,252.18,251.74,3.9723]
[1732201253551,40.48955962,251.97,251.84,40.48955962]
[1732201253930,44.45805962,251.99,251.86,40.48955962]
[1732201254152,40.48955962,252.05,251.92,40.48955962]
[1732201254452,40.48955962,252.09,251.96,40.48955962]
[1732201254655,3.9655,252.17,251.92,40.48955962]
[1732201254959,3.9655,252.17,251.85,13.8971]
[1732201255126,4.4655,252.17,251.85,13.8971]
[1732201255329,3.9655,252.17,251.85,13.8971]
[1732201255527,0.5,252.14,251.85,9.9265]
[1732201255731,40.48955962,252.01,251.88,40.48955962]
[1732201255952,20.0,252.16,251.8,40.48955962]
[1732201255953,40.48955962,251.93,251.8,40.48955962]
[1732201256160,40.48955962,251.88,251.75,40.48955962]
[1732201256349,40.48955962,251.9,251.77,40.48955962]
[1732201256549,40.48955962,251.9,251.69,9.9328]
[1732201256550,20.0,251.99,251.69,9.9328]
[1732201256752,20.0,251.99,251.49,53.68]
[1732201257061,20.0,251.99,251.5,0.90883271]
[1732201257262,0.5,251.97,251.5,0.90883271]
[1732201257460,20.0,251.99,251.51,0.49905]
[1732201257784,40.48955962,251.9,251.78,40.48955962]
[1732201257936,40.48955962,251.92,251.78,40.48955962]
[1732201258135,40.48955962,251.94,251.82,40.48955962]
[1732201258348,40.48955962,251.94,251.8,40.48955962]
[1732201258549,40.48955962,251.9,251.78,40.48955962]
[1732201258755,40.48955962,251.94,251.82,40.48955962]
[1732201259051,40.48955962,251.96,251.82,40.48955962]
[1732201259230,33.722,252.06,251.6,9.9364]
[1732201259231,40.48955962,252.01,251.88,40.48955962]
[1732201259429,40.48955962,251.97,251.85,40.48955962]
[1732201259661,13.8855,252.06,251.6,9.9364]
[1732201259662,40.48955962,251.95,251.6,9.9364]
[1732201259962,44.45865962,251.95,251.83,40.48955962]
[1732201260167,40.48955962,251.97,251.85,40.48955962]
[1732201260458,40.48955962,251.97,251.78,13.9007]
[1732201260459,40.48955962,251.97,251.84,40.48955962]
[1732201260638,33.7233,252.05,251.62,13.9098]
[1732201260836,0.5,252.01,251.63,0.90836318]
[1732201261147,0.5,252.01,251.22,15.881309]
[1732201261148,5.51627848,251.57,251.22,15.881309]
[1732201261330,5.51627848,251.57,251.23,3.09889079]
[1732201261536,5.51627848,251.57,251.19,0.596847]
[1732201261759,6.44844311,251.57,251.23,0.49905]
[1732201262035,5.51627848,251.57,251.5,40.48955962]
[1732201262236,5.51627848,251.57,251.53,40.48955962]
[1732201262435,5.39087848,251.57,251.56,40.48955962]
[1732201262736,5.39087848,251.57,251.49,13.0629]
[1732201262962,2.99447848,251.57,251.56,0.49905]
[1732201263261,13.8828,252.11,251.65,0.49905]
[1732201263439,13.8828,252.11,251.49,13.0629]
[1732201263440,13.8828,252.11,251.64,0.49905]
[1732201263835,13.8828,252.11,251.69,13.9059]
[1732201264081,40.48955962,251.85,251.69,13.9059]
[1732201264258,40.48955962,251.87,251.74,40.48955962]
[1732201264467,40.8482742,252.11,251.69,13.9059]
[1732201264468,40.48955962,251.81,251.69,13.9059]
[1732201264646,40.48955962,251.79,251.69,13.9059]
[1732201264847,40.48955962,251.72,251.69,13.9059]
[1732201265079,0.5,252.04,251.62,3.9741]
[1732201265250,312.0,251.85,251.44,3.63050548]
[1732201265451,312.0,251.85,251.31,0.49905]
[1732201265452,10.83975876,252.03,251.52,9.9393]
[1732201265669,0.5,252.01,251.52,9.9393]
[1732201265963,40.48955962,251.77,251.65,40.48955962]
[1732201266462,40.48955962,251.83,251.71,40.48955962]
[1732201266675,40.48955962,251.82,251.7,40.48955962]
[1732201266970,3.968,252.01,251.52,9.9393]
[1732201266971,3.968,252.01,251.57,0.49905]
[1732201267270,33.7286,252.01,251.52,9.9393]
[1732201267474,7.57525372,252.0,251.52,9.9393]
[1732201267645,7.57525372,252.0,251.47,51.3788]
[1732201267646,0.5,251.89,251.47,13.918]
[1732201267850,20.0,251.98,251.47,9.9415]
[1732201267851,6.73639341,251.88,251.47,9.9415]
[1732201268049,40.48955962,251.71,251.6,40.48955962]
[1732201268250,40.48955962,251.75,251.62,40.48955962]
[1732201268473,40.48955962,251.76,251.64,40.48955962]
[1732201268654,40.48955962,251.78,251.66,40.48955962]
[1732201268854,13.8905,251.97,251.52,0.49905]
[1732201269056,13.8905,251.97,251.51,0.49905]
[1732201269254,13.8905,251.97,251.49,0.49905]
[1732201269456,13.8905,251.97,251.47,29.8245]
[1732201269457,0.5,251.89,251.47,9.9415]
[1732201269658,0.5,251.8,251.47,9.9415]
[1732201269878,38.34790938,251.6,251.4,19.8886]
[1732201270052,38.34790938,251.62,251.5,38.34790938]
[1732201270252,38.34790938,251.58,251.46,38.34790938]
[1732201270573,38.34790938,251.72,251.64,3.8347]
[1732201271275,38.34790938,251.74,251.64,3.8347]
[1732201271660,38.34790938,251.74,251.64,13.7695]
[1732201271852,38.34790938,251.72,251.64,13.7695]
[1732201272168,3.9716,251.79,251.64,3.8347]
[1732201272348,38.34790938,251.71,251.64,3.8347]
[1732201272674,3.9704,251.86,251.64,17.7433]
[1732201272874,3.9691,251.94,251.64,17.7433]
[1732201273056,19.8436,251.97,251.64,17.7433]
[1732201273057,19.8436,251.97,251.64,3.8347]
[1732201273264,13.8866,252.04,251.66,0.5]
[1732201273265,3.9676,252.04,251.66,0.5]
[1732201273451,3.9676,252.04,251.65,12.8936]
[1732201273452,3.9676,252.04,251.71,0.49905]
[1732201273770,0.93216463,252.03,252.0,38.34790938]
[1732201273982,0.93216463,252.03,252.02,38.34790938]
[1732201274266,38.34790938,252.11,252.0,38.34790938]
[1732201274472,38.34790938,252.01,251.81,38.34790938]
[1732201274661,0.5,252.08,251.64,3.8347]
[1732201274848,0.5,252.11,251.64,3.8347]
[1732201275044,13.8832,252.1,251.66,13.9076]
[1732201275300,0.5,252.03,251.66,13.9076]
[1732201275566,0.5,252.08,251.66,13.9076]
[1732201275567,38.34790938,251.89,251.78,38.34790938]
[1732201275776,38.34790938,251.91,251.79,38.34790938]
[1732201275951,38.34790938,251.89,251.77,38.34790938]
[1732201276274,38.34790938,251.91,251.8,38.34790938]
[1732201276463,20.0,251.99,251.76,38.34790938]
[1732201276772,38.34790938,251.89,251.77,38.34790938]
[1732201276969,38.34790938,251.87,251.75,38.34790938]
[1732201277177,38.34790938,251.95,251.7,3.9729]
[1732201277358,3.9679,252.02,251.7,3.9729]
[1732201277685,13.8877,252.02,251.7,3.9729]
[1732201278170,3.9679,252.02,251.7,3.9729]
[1732201278548,3.9679,252.02,251.93,38.34790938]
[1732201278752,3.9679,252.02,251.95,38.34790938]
[1732201279074,38.34790938,252.05,251.7,0.49905]
[1732201279265,38.34790938,252.05,251.93,38.34790938]
[1732201279864,13.8855,252.06,251.93,38.34790938]
[1732201280076,38.34790938,252.03,251.91,38.34790938]
[1732201280266,38.34790938,252.05,251.93,38.34790938]
[1732201280662,0.5,252.15,252.01,38.34790938]
[1732201280663,38.34790938,252.13,252.01,38.34790938]
[1732201280973,38.34790938,252.21,252.1,38.34790938]
[1732201281178,3.9646,252.23,252.15,38.34790938]
[1732201281483,15.844429,252.27,252.07,38.34790938]
[1732201281773,3.9636,252.29,252.07,38.34790938]
[1732201281951,3.9636,252.29,252.18,38.34790938]
[1732201282157,3.9636,252.29,252.25,38.34790938]
[1732201282361,3.9636,252.29,252.19,38.34790938]
[1732201282574,9.9066,252.28,252.19,38.34790938]
[1732201282883,3.964,252.27,252.17,38.34790938]
[1732201283378,3.964,252.27,252.08,38.34790938]
[1732201283379,33.694,252.27,252.08,38.34790938]
[1732201283572,38.34790938,252.22,252.08,38.34790938]
[1732201283772,38.34790938,252.18,252.06,38.34790938]
[1732201284171,38.34790938,252.14,252.02,38.34790938]
[1732201284369,38.34790938,252.2,251.94,42.01871489]
[1732201284370,20.0,252.11,252.0,38.34790938]
[1732201284680,20.0,252.11,251.96,38.34790938]
[1732201284681,38.34790938,252.09,251.96,38.34790938]
[1732201284880,38.34790938,252.05,251.94,42.01871489]
[1732201285050,38.34790938,252.09,251.98,38.34790938]
[1732201285465,38.34790938,252.09,251.96,38.34790938]
[1732201285678,38.34790938,252.05,251.94,42.01871489]
[1732201285980,38.34790938,252.09,251.96,38.34790938]
[1732201286273,38.34790938,252.01,251.88,38.34790938]
[1732201286479,3.9666,252.1,251.84,9.9268]
[1732201286663,9.914,252.17,251.84,9.9268]
[1732201287069,3.9647,252.22,251.85,0.49905]
[1732201287393,3.9647,252.22,251.88,0.49905]
[1732201287559,13.8766,252.22,252.03,38.34790938]
[1732201287880,38.34790938,252.18,252.05,38.34790938]
[1732201288198,38.34790938,252.2,252.07,38.34790938]
[1732201288486,38.34790938,252.16,252.03,38.34790938]
[1732201288656,3.9658,252.15,252.03,38.34790938]
[1732201288861,38.34790938,252.22,252.09,38.34790938]
[1732201289061,38.34790938,252.16,252.05,38.34790938]
[1732201289454,38.34790938,252.12,252.0,38.34790938]
[1732201289875,38.34790938,252.12,251.81,51.53055938]
[1732201289876,38.34790938,252.1,251.98,38.34790938]
[1732201290094,38.34790938,252.08,251.9,9.9245]
[1732201290392,38.34790938,252.17,252.05,38.34790938]
[1732201290561,4.87356563,252.07,251.95,3.72265391]
[1732201290873,4.87356563,252.07,251.81,51.03150938]
[1732201290874,3.9673,252.06,251.96,38.34790938]
[1732201291460,3.9673,252.06,252.02,38.34790938]
[1732201291866,3.9673,252.06,252.0,38.34790938]
[1732201292076,3.9673,252.06,251.95,3.72207059]
[1732201292077,3.9673,252.06,252.05,38.34790938]
[1732201292273,3.9673,252.06,252.04,38.34790938]
[1732201292488,3.9673,252.06,252.02,38.34790938]
[1732201292667,3.9657,252.16,252.04,38.34790938]
[1732201292870,38.34790938,252.12,252.02,38.34790938]
[1732201293194,3.9657,252.16,252.05,38.34790938]
[1732201293392,38.34790938,252.15,252.03,38.34790938]
[1732201293565,3.9657,252.16,251.95,3.72207059]
[1732201293566,13.88,252.16,252.05,38.34790938]
[1732201293764,38.34790938,252.1,251.98,38.34790938]
[1732201294066,38.34790938,252.15,252.03,38.34790938]
[1732201294277,38.34790938,252.13,252.01,38.34790938]
[1732201294489,38.34790938,252.15,252.03,38.34790938]
[1732201294982,3.966,252.14,252.03,38.34790938]
[1732201295485,3.966,252.14,251.99,3.9682]
[1732201295486,38.34790938,252.13,252.01,38.34790938]
[1732201295787,3.966,252.14,252.03,38.34790938]
[1732201296004,38.34790938,252.11,251.99,38.34790938]
[1732201296163,38.34790938,252.07,251.95,42.06997997]
[1732201296365,38.34790938,252.05,251.95,3.72207059]
[1732201296561,38.34790938,252.03,251.95,3.72207059]
[1732201296776,38.34790938,252.0,251.95,3.72207059]
[1732201296987,38.34790938,251.96,251.95,3.72207059]
[1732201298166,38.34790938,251.96,251.68,0.5]
[1732201298167,23.72207059,251.95,251.76,4.05262678]
[1732201298372,12.43247742,251.95,251.64,3.8347]
[1732201298572,3.9673,252.06,251.73,0.5]
[1732201298871,5.38979473,252.22,251.69,12.3277]
[1732201298872,0.5,252.07,251.74,3.1471122]
[1732201299075,20.0,252.08,251.75,0.5]
[1732201299267,38.34790938,251.96,251.85,38.34790938]
[1732201299467,38.34790938,251.86,251.69,12.8277]
[1732201299683,38.34790938,251.82,251.69,51.17560938]
[1732201299872,38.34790938,251.8,251.69,12.3277]
[1732201300069,38.34790938,251.94,251.57,0.49905]
[1732201300270,20.0,251.93,251.56,3.15205697]
[1732201300473,20.0,251.93,251.57,3.15205697]
[1732201300474,0.5,251.85,251.57,3.15205697]
[1732201300681,0.5,251.71,251.51,3.15205697]
[1732201300893,0.5,251.65,251.33,12.2798]
[1732201301089,14.4053,251.7,251.15,0.49905]
[1732201301090,198.33658209,251.53,251.15,0.5]
[1732201301390,198.33658209,251.53,251.13,0.5]
[1732201301391,38.34790938,251.22,251.13,0.5]
[1732201301562,38.34790938,251.2,251.11,0.49905]
[1732201301765,38.34790938,251.2,251.11,0.99905]
[1732201302267,38.34790938,251.2,251.1,12.2798]
[1732201302268,38.34790938,251.42,251.17,0.5]
[1732201302564,38.34790938,251.42,251.21,0.5]
[1732201302767,23.9745,251.6,251.23,0.49905]
[1732201302967,12.2798,251.43,251.14,0.5]
[1732201303180,38.34790938,251.36,251.24,38.34790938]
[1732201303396,38.34790938,251.38,251.19,0.5]
[1732201303573,38.34790938,251.35,251.23,38.34790938]
[1732201303776,38.34790938,251.29,251.13,0.49905]
[1732201303983,38.34790938,251.42,251.15,0.5]
[1732201304168,38.34790938,251.42,251.16,0.5]
[1732201304371,43.776884,251.3,250.97,3.72273663]
[1732201304574,38.34790938,251.11,250.93,0.5]
[1732201304896,0.5,251.37,251.01,0.99905]
[1732201304897,13.9235,251.37,251.01,0.99905]
[1732201305106,12.89,251.56,251.13,0.5]
[1732201305394,23.776884,251.41,251.02,0.5]
[1732201305598,23.776884,251.41,250.91,0.49905]
[1732201305599,33.8079,251.42,251.04,0.5]
[1732201305901,38.34790938,251.1,250.97,38.34790938]
[1732201306195,38.34790938,251.04,250.91,38.34790938]
[1732201306497,20.0,251.15,250.82,0.5]
[1732201306791,20.0,251.09,250.86,38.34790938]
[1732201307001,38.34790938,250.99,250.86,38.34790938]
[1732201307170,38.34790938,250.98,250.8,33.7718]
[1732201307374,38.34790938,250.96,250.84,38.34790938]
[1732201307589,38.34790938,250.92,250.8,71.61970938]
[1732201307894,38.34790938,250.81,250.61,5.88550282]
[1732201308099,38.34790938,250.81,250.57,3.72273663]
[1732201308100,38.34790938,250.7,250.59,3.79732894]
[1732201308275,38.34790938,250.77,250.48,0.5]
[1732201308599,38.34790938,250.68,250.56,38.34790938]
[1732201308784,38.34790938,250.7,250.58,38.34790938]
[1732201309100,51.27950938,250.77,250.59,38.34790938]
[1732201309101,38.34790938,250.72,250.59,38.34790938]
[1732201309276,38.34790938,250.7,250.59,38.34790938]
[1732201309604,38.34790938,250.74,250.61,38.34790938]
[1732201309894,38.34790938,250.72,250.61,38.34790938]
[1732201310099,12.9316,250.77,250.7,38.34790938]
[1732201310290,0.5,251.12,250.76,76.69581876]
[1732201310491,19.9101,251.13,250.76,76.69581876]
[1732201310492,15.91998,250.97,250.78,19.24954817]
[1732201310696,15.91998,250.97,250.77,0.49905]
[1732201310697,15.91998,250.97,250.83,0.5]
[1732201310876,15.91998,250.97,250.77,0.49905]
[1732201310877,3.9826,251.09,250.77,0.49905]
[1732201311291,3.9826,251.09,250.81,0.49905]
[1732201311600,9.9534,251.17,250.74,12.3882]
[1732201311601,38.57076606,251.08,250.96,38.57076606]
[1732201311778,38.57076606,251.12,251.0,38.57076606]
[1732201312400,0.5,251.28,250.9,38.57076606]
[1732201312575,38.57076606,251.22,251.1,38.57076606]
[1732201312898,33.828,251.27,251.08,38.57076606]
[1732201312899,15.914028,251.11,251.08,38.57076606]
[1732201313081,15.914028,251.11,251.04,38.57076606]
[1732201313280,0.5,251.09,250.9,38.57076606]
[1732201313493,1.0,251.0,250.63,0.5]
[1732201313780,3.9842,250.99,250.68,0.5]
[1732201314083,3.9842,250.99,250.76,0.49905]
[1732201314290,3.9842,250.99,250.73,13.9591]
[1732201314291,3.9824,251.1,250.98,38.59211312]
[1732201314493,3.9824,251.1,250.9,38.59211312]
[1732201314494,3.9824,251.1,251.01,38.59211312]
[1732201314898,3.9805,251.22,251.09,38.59211312]
[1732201315105,0.5,251.36,251.2,38.59211312]
[1732201315275,0.5,251.33,251.03,38.59211312]
[1732201315480,0.5,251.29,251.03,38.59211312]
[1732201315705,0.5,251.25,251.03,38.59211312]
[1732201316006,3.9793,251.3,251.05,0.49905]
[1732201316189,3.9793,251.3,251.23,38.59211312]
[1732201316387,3.9793,251.3,251.19,38.59211312]
[1732201316595,0.5,251.06,250.63,0.5]
[1732201316795,1.0,251.21,250.8,0.99905]
[1732201317105,33.824,251.3,250.94,0.5]
[1732201317286,33.824,251.3,250.66,14.56088708]
[1732201317287,13.9275,251.3,250.97,0.49905]
[1732201317480,13.9275,251.3,250.95,12.2582]
[1732201317677,33.824,251.3,250.96,13.9463]
[1732201317876,3.9793,251.3,251.2,38.59211312]
[1732201318096,3.9793,251.3,251.03,38.59211312]
[1732201318097,38.59211312,251.26,251.14,38.59211312]
[1732201318294,38.59211312,251.19,251.1,38.59211312]
[1732201318508,38.59211312,251.23,251.12,38.59211312]
[1732201319005,38.59211312,251.14,250.99,38.59211312]
[1732201319306,38.59211312,251.09,250.96,38.59211312]
[1732201319601,38.59211312,251.11,251.0,38.59211312]
[1732201319802,3.9824,251.1,251.0,38.59211312]
[1732201320107,3.9824,251.1,250.72,3.9885]
[1732201320108,43.776884,251.0,250.72,3.9885]
[1732201320279,20.5,251.09,250.88,38.59211312]
[1732201320280,38.59211312,250.99,250.88,38.59211312]
[1732201320480,6.05598704,251.09,250.89,38.59211312]
[1732201320481,38.59211312,251.0,250.89,38.59211312]
[1732201320676,38.59211312,251.0,250.72,13.9597]
[1732201320677,0.5,251.0,250.8,38.59211312]
[1732201320885,20.0,250.98,250.72,13.9597]
[1732201321310,6.05598704,251.06,250.72,14.45875]
[1732201321605,0.5,251.08,250.72,14.45875]
[1732201321606,0.5,251.07,250.72,13.9597]
[1732201321915,38.59211312,250.89,250.77,38.59211312]
[1732201322087,38.59211312,250.87,250.68,3.989]
[1732201322288,38.59211312,250.87,250.77,38.59211312]
[1732201322799,20.0,250.84,250.58,3.9907]
[1732201323109,0.5,250.88,250.54,0.49905]
[1732201323110,6.11582151,250.88,250.54,0.49905]
[1732201323408,20.0,250.92,250.53,13.9703]
[1732201323612,0.5,250.75,250.44,9.9824]
[1732201323783,3.9873,250.79,250.7,38.59211312]
[1732201324117,3.9873,250.79,250.4,0.5]
[1732201324118,0.5,250.65,250.47,38.59211312]
[1732201324294,38.59211312,250.53,250.41,38.59211312]
[1732201324495,0.5,250.48,250.23,13.9871]
[1732201324707,0.5,250.49,250.16,9.9936]
[1732201325012,24.276884,250.44,250.12,3.9979]
[1732201325216,0.5,250.4,250.12,9.9952]
[1732201325509,0.5,250.37,250.09,3.9984]
[1732201325711,23.776884,250.41,250.22,38.59211312]
[1732201325712,38.59211312,250.33,250.22,38.59211312]
[1732201325902,23.776884,250.41,250.29,38.59211312]